[Event "*** SCC Grand Prix: Titled Tuesday Blitz"]
[Site "Chess.com"]
[Date "2020.09.08"]
[Round "10"]
[White "ChessPromotionAlex"]
[Black "Chessdreamer2020"]
[Result "1-0"]
[WhiteElo "2523"]
[BlackElo "2385"]
[TimeControl "180+1"]
[EndTime "11:57:01 PDT"]
[Termination "ChessPromotionAlex won by resignation"]

1. e4 {[%clk 0:03:00.9]} 1... d6 {[%clk 0:02:57.4]} 2. d4 {[%clk 0:03:00]} 2...
Nf6 {[%clk 0:02:56.3]} 3. Nc3 {[%clk 0:03:00.4]} 3... e5 {[%clk 0:02:55.9]} 4.
Nf3 {[%clk 0:02:59.3]} 4... Nbd7 {[%clk 0:02:56]} 5. Bc4 {[%clk 0:02:58.7]} 5...
Be7 {[%clk 0:02:56.4]} 6. dxe5 {[%clk 0:02:50.2]} 6... dxe5 {[%clk 0:02:54.8]}
7. Ng5 {[%clk 0:02:49.4]} 7... O-O {[%clk 0:02:54.5]} 8. Bxf7+ {[%clk
0:02:47.6]} 8... Rxf7 {[%clk 0:02:54.2]} 9. Ne6 {[%clk 0:02:47.7]} 9... Qe8
{[%clk 0:02:53.8]} 10. Nxc7 {[%clk 0:02:48.2]} 10... Qd8 {[%clk 0:02:53.7]} 11.
Nxa8 {[%clk 0:02:47.5]} 11... b6 {[%clk 0:02:50.4]} 12. Be3 {[%clk 0:02:27.3]}
12... Bb7 {[%clk 0:02:49.9]} 13. Nxb6 {[%clk 0:02:27.2]} 13... axb6 {[%clk
0:02:50.3]} 14. f3 {[%clk 0:01:46.1]} 14... Ba6 {[%clk 0:02:50]} 15. Qd2 {[%clk
0:01:41]} 15... Qc7 {[%clk 0:02:37.8]} 16. O-O-O {[%clk 0:01:26.2]} 16... Bb4
{[%clk 0:02:37.3]} 17. a3 {[%clk 0:01:26.1]} 17... Bxc3 {[%clk 0:02:31.6]} 18.
Qxc3 {[%clk 0:01:22.5]} 18... Qxc3 {[%clk 0:02:31.6]} 19. bxc3 {[%clk
0:01:23.4]} 19... Bc4 {[%clk 0:02:01.6]} 20. Rd6 {[%clk 0:01:17.1]} 20... b5
{[%clk 0:02:01.8]} 21. Rc6 {[%clk 0:01:03.9]} 21... Rf8 {[%clk 0:01:38.9]} 22.
Rc7 {[%clk 0:00:51.9]} 22... Ra8 {[%clk 0:01:36]} 23. Ra7 {[%clk 0:00:50.1]}
23... Rxa7 {[%clk 0:01:34.3]} 24. Bxa7 {[%clk 0:00:51]} 24... Kf7 {[%clk
0:01:34.8]} 25. Kd2 {[%clk 0:00:46.5]} 25... Nh5 {[%clk 0:01:26.1]} 26. g3
{[%clk 0:00:43.3]} 26... g6 {[%clk 0:01:25]} 27. Rb1 {[%clk 0:00:37.4]} 27...
Ng7 {[%clk 0:01:24.2]} 28. Rb4 {[%clk 0:00:36.4]} 28... Bf1 {[%clk 0:01:21.8]}
29. Ke1 {[%clk 0:00:35.6]} 29... Bg2 {[%clk 0:00:55.1]} 30. Kf2 {[%clk
0:00:34.5]} 30... Bh3 {[%clk 0:00:55.1]} 31. Rxb5 {[%clk 0:00:30.5]} 31... Be6
{[%clk 0:00:50.9]} 32. Rb4 {[%clk 0:00:29.8]} 32... Ne8 {[%clk 0:00:48]} 33. Bb6
{[%clk 0:00:19.7]} 33... Ke7 {[%clk 0:00:47.9]} 34. a4 {[%clk 0:00:19.1]} 34...
Kd6 {[%clk 0:00:48.1]} 35. a5 {[%clk 0:00:18.5]} 35... Kc6 {[%clk 0:00:48.5]}
36. Be3 {[%clk 0:00:17.6]} 36... Nc7 {[%clk 0:00:46.3]} 37. f4 {[%clk
0:00:16.8]} 37... Nb5 {[%clk 0:00:31]} 38. Bd2 {[%clk 0:00:14.5]} 38... Nd6
{[%clk 0:00:16.1]} 39. a6 {[%clk 0:00:12.8]} 39... Nb5 {[%clk 0:00:13.3]} 40.
Be3 {[%clk 0:00:08.2]} 40... Nc7 {[%clk 0:00:11.4]} 41. a7 {[%clk 0:00:07.5]}
41... Nc5 {[%clk 0:00:11.4]} 42. Bxc5 {[%clk 0:00:06.5]} 42... Kxc5 {[%clk
0:00:11.8]} 43. Rb7 {[%clk 0:00:06.8]} 1-0

[Event "*** SCC Grand Prix: Titled Tuesday Blitz"]
[Site "Chess.com"]
[Date "2020.09.08"]
[Round "10"]
[White "DonPreuss"]
[Black "tteshan"]
[Result "0-1"]
[WhiteElo "2253"]
[BlackElo "2399"]
[TimeControl "180+1"]
[EndTime "11:57:01 PDT"]
[Termination "tteshan won on time"]

1. d4 {[%clk 0:03:00.9]} 1... Nf6 {[%clk 0:02:59]} 2. Nc3 {[%clk 0:02:59.8]}
2... d5 {[%clk 0:02:55.8]} 3. e4 {[%clk 0:02:59.3]} 3... dxe4 {[%clk 0:02:53.3]}
4. f3 {[%clk 0:02:59.1]} 4... exf3 {[%clk 0:02:51.9]} 5. Nxf3 {[%clk 0:02:58.6]}
5... Nc6 {[%clk 0:02:49.5]} 6. Be3 {[%clk 0:02:51.3]} 6... Bf5 {[%clk
0:02:46.9]} 7. Bb5 {[%clk 0:02:45]} 7... e6 {[%clk 0:02:42]} 8. Ne5 {[%clk
0:02:38.1]} 8... Bb4 {[%clk 0:02:21.2]} 9. Nxc6 {[%clk 0:02:33.2]} 9... bxc6
{[%clk 0:02:21.3]} 10. Bxc6+ {[%clk 0:02:32.2]} 10... Ke7 {[%clk 0:02:21.9]} 11.
Bxa8 {[%clk 0:02:31.1]} 11... Qxa8 {[%clk 0:02:22.8]} 12. O-O {[%clk 0:02:29.4]}
12... Rd8 {[%clk 0:02:21.9]} 13. Ne2 {[%clk 0:02:10.8]} 13... Qe4 {[%clk
0:02:10.3]} 14. Bf2 {[%clk 0:01:43.7]} 14... Bg4 {[%clk 0:02:00.1]} 15. Ng3
{[%clk 0:01:29]} 15... Qg6 {[%clk 0:01:59.5]} 16. Qd3 {[%clk 0:01:24.2]} 16...
Qxd3 {[%clk 0:01:43]} 17. cxd3 {[%clk 0:01:25.1]} 17... h5 {[%clk 0:01:43.9]}
18. Ne4 {[%clk 0:01:22.2]} 18... Be2 {[%clk 0:01:39.9]} 19. Rfc1 {[%clk
0:01:18.7]} 19... Ba5 {[%clk 0:01:32]} 20. Nxf6 {[%clk 0:01:17.7]} 20... gxf6
{[%clk 0:01:30.4]} 21. a3 {[%clk 0:01:15.4]} 21... Bxd3 {[%clk 0:01:29]} 22. b4
{[%clk 0:01:15.3]} 22... Bb6 {[%clk 0:01:28.8]} 23. Rc3 {[%clk 0:01:14.7]} 23...
Be4 {[%clk 0:01:27.9]} 24. Rd1 {[%clk 0:01:13]} 24... Rg8 {[%clk 0:01:26.9]} 25.
g3 {[%clk 0:01:09.8]} 25... h4 {[%clk 0:01:26]} 26. a4 {[%clk 0:01:07.7]} 26...
hxg3 {[%clk 0:01:25.4]} 27. hxg3 {[%clk 0:01:06.2]} 27... a5 {[%clk 0:01:21.5]}
28. b5 {[%clk 0:01:00.4]} 28... Rh8 {[%clk 0:01:19.1]} 29. Kf1 {[%clk
0:00:47.2]} 29... Rh2 {[%clk 0:01:12.4]} 30. Rdc1 {[%clk 0:00:38.8]} 30... Kd6
{[%clk 0:01:01.1]} 31. g4 {[%clk 0:00:34.4]} 31... Rh7 {[%clk 0:00:52.3]} 32.
Bg3+ {[%clk 0:00:33.3]} 32... Kd5 {[%clk 0:00:48.1]} 33. Bxc7 {[%clk 0:00:32]}
33... Bxd4 {[%clk 0:00:48.2]} 34. Bg3 {[%clk 0:00:18.2]} 34... Bxc3 {[%clk
0:00:46]} 35. Rxc3 {[%clk 0:00:17.2]} 35... Kd4 {[%clk 0:00:46.3]} 36. Rc7
{[%clk 0:00:15.9]} 36... Ke3 {[%clk 0:00:43.4]} 37. Bf2+ {[%clk 0:00:13.6]}
37... Kf3 {[%clk 0:00:42.5]} 38. Rc3+ {[%clk 0:00:10.6]} 38... Kxg4 {[%clk
0:00:42.5]} 39. b6 {[%clk 0:00:08.8]} 39... Rh8 {[%clk 0:00:42.1]} 40. Rb3
{[%clk 0:00:05.7]} 40... Rb8 {[%clk 0:00:41.1]} 41. Ke2 {[%clk 0:00:05.4]} 41...
e5 {[%clk 0:00:38.6]} 42. Rb2 {[%clk 0:00:06.3]} 42... f5 {[%clk 0:00:38.3]} 43.
Bc5 {[%clk 0:00:07.2]} 43... Rb7 {[%clk 0:00:35.7]} 44. Bd6 {[%clk 0:00:06.6]}
44... f6 {[%clk 0:00:36.1]} 45. Bc7 {[%clk 0:00:06.6]} 45... f4 {[%clk
0:00:35.9]} 46. Rb5 {[%clk 0:00:05.5]} 46... f3+ {[%clk 0:00:35.9]} 47. Ke3
{[%clk 0:00:05.9]} 47... Bc6 {[%clk 0:00:33.9]} 48. Rxa5 {[%clk 0:00:05.4]}
48... Kg3 {[%clk 0:00:33.9]} 49. Ra7 {[%clk 0:00:03.1]} 49... Rxa7 {[%clk
0:00:30]} 50. bxa7 {[%clk 0:00:00.6]} 50... f2 {[%clk 0:00:30.9]} 0-1

[Event "*** SCC Grand Prix: Titled Tuesday Blitz"]
[Site "Chess.com"]
[Date "2020.09.08"]
[Round "10"]
[White "vova-79"]
[Black "Ramu_K_FM_FT"]
[Result "0-1"]
[WhiteElo "2492"]
[BlackElo "1989"]
[TimeControl "180+1"]
[EndTime "11:57:02 PDT"]
[Termination "Ramu_K_FM_FT won on time"]

1. d4 {[%clk 0:03:00.9]} 1... Nf6 {[%clk 0:02:59]} 2. c4 {[%clk 0:03:00.7]} 2...
g6 {[%clk 0:02:58.9]} 3. Nc3 {[%clk 0:03:00.1]} 3... Bg7 {[%clk 0:02:59.4]} 4.
Nf3 {[%clk 0:03:00.2]} 4... O-O {[%clk 0:02:58.2]} 5. g3 {[%clk 0:02:59.6]} 5...
d6 {[%clk 0:02:56.6]} 6. Bg2 {[%clk 0:02:59.1]} 6... Nc6 {[%clk 0:02:56.6]} 7.
O-O {[%clk 0:02:58.8]} 7... e5 {[%clk 0:02:54.2]} 8. dxe5 {[%clk 0:02:59.1]}
8... Nxe5 {[%clk 0:02:53.1]} 9. Nxe5 {[%clk 0:02:58.4]} 9... dxe5 {[%clk
0:02:52.8]} 10. Qxd8 {[%clk 0:02:59.3]} 10... Rxd8 {[%clk 0:02:52.2]} 11. Bg5
{[%clk 0:03:00.2]} 11... Re8 {[%clk 0:02:43.8]} 12. Nb5 {[%clk 0:02:59.2]} 12...
Re7 {[%clk 0:02:35.6]} 13. Rfd1 {[%clk 0:02:59.6]} 13... Be6 {[%clk 0:02:30.6]}
14. Bxb7 {[%clk 0:02:45.5]} 14... Rb8 {[%clk 0:02:26.6]} 15. Bf3 {[%clk
0:02:20.8]} 15... h6 {[%clk 0:02:13.7]} 16. Bxf6 {[%clk 0:02:17.2]} 16... Bxf6
{[%clk 0:02:14.6]} 17. Nxa7 {[%clk 0:02:17.1]} 17... Rxb2 {[%clk 0:02:12.4]} 18.
Bd5 {[%clk 0:01:31.2]} 18... Rxe2 {[%clk 0:02:03.1]} 19. Nc6 {[%clk 0:01:21]}
19... Re8 {[%clk 0:01:58.1]} 20. a4 {[%clk 0:01:21.5]} 20... e4 {[%clk
0:01:37.5]} 21. Ra3 {[%clk 0:01:19.3]} 21... Bh3 {[%clk 0:01:34.2]} 22. a5
{[%clk 0:01:17.3]} 22... e3 {[%clk 0:01:23.5]} 23. Rxe3 {[%clk 0:01:11.3]} 23...
R8xe3 {[%clk 0:01:19.6]} 24. fxe3 {[%clk 0:01:11.9]} 24... Bg5 {[%clk
0:01:16.9]} 25. Rd3 {[%clk 0:01:03.9]} 25... Bxe3+ {[%clk 0:01:16]} 26. Rxe3
{[%clk 0:01:02.3]} 26... Rxe3 {[%clk 0:01:11.9]} 27. a6 {[%clk 0:01:01.6]} 27...
Ra3 {[%clk 0:01:01.8]} 28. a7 {[%clk 0:01:00.9]} 28... Be6 {[%clk 0:00:58.5]}
29. Ne7+ {[%clk 0:00:36.4]} 29... Kf8 {[%clk 0:00:57.9]} 30. a8=Q+ {[%clk
0:00:24.2]} 30... Rxa8 {[%clk 0:00:56.4]} 31. Nxg6+ {[%clk 0:00:24.6]} 31...
fxg6 {[%clk 0:00:50.2]} 32. Bxa8 {[%clk 0:00:25.5]} 32... Bxc4 {[%clk
0:00:49.4]} 33. Kf2 {[%clk 0:00:24.9]} 33... Ke7 {[%clk 0:00:48.9]} 34. Ke3
{[%clk 0:00:24.7]} 34... Kd6 {[%clk 0:00:46.6]} 35. Kd4 {[%clk 0:00:19.2]} 35...
Be6 {[%clk 0:00:45.2]} 36. Be4 {[%clk 0:00:16.1]} 36... Bf5 {[%clk 0:00:39.7]}
37. Bf3 {[%clk 0:00:14.2]} 37... c5+ {[%clk 0:00:38.8]} 38. Ke3 {[%clk 0:00:14]}
38... Ke5 {[%clk 0:00:35.5]} 39. Be2 {[%clk 0:00:10.4]} 39... Be6 {[%clk
0:00:32.9]} 40. Bd3 {[%clk 0:00:09.2]} 40... g5 {[%clk 0:00:32.9]} 41. Bc2
{[%clk 0:00:08.7]} 41... c4 {[%clk 0:00:31.6]} 42. Bd1 {[%clk 0:00:04.1]} 42...
Kd5 {[%clk 0:00:28.4]} 43. h4 {[%clk 0:00:01.8]} 43... gxh4 {[%clk 0:00:24.2]}
44. gxh4 {[%clk 0:00:01.7]} 44... Kc5 {[%clk 0:00:20.6]} 45. Kf4 {[%clk
0:00:01.3]} 45... Kd4 {[%clk 0:00:18.9]} 0-1

[Event "*** SCC Grand Prix: Titled Tuesday Blitz"]
[Site "Chess.com"]
[Date "2020.09.08"]
[Round "10"]
[White "GMJustin"]
[Black "Pikachess999"]
[Result "1-0"]
[WhiteElo "2251"]
[BlackElo "2378"]
[TimeControl "180+1"]
[EndTime "11:57:03 PDT"]
[Termination "GMJustin won on time"]

1. d4 {[%clk 0:02:50.2]} 1... Nf6 {[%clk 0:02:58.7]} 2. c4 {[%clk 0:02:48.7]}
2... e5 {[%clk 0:02:59.1]} 3. dxe5 {[%clk 0:02:47.1]} 3... Ng4 {[%clk
0:02:59.3]} 4. Bf4 {[%clk 0:02:41.3]} 4... g5 {[%clk 0:02:59.4]} 5. Bg3 {[%clk
0:02:40.6]} 5... Nc6 {[%clk 0:02:59]} 6. h4 {[%clk 0:02:40]} 6... Ngxe5 {[%clk
0:02:54.5]} 7. hxg5 {[%clk 0:02:12.2]} 7... Qxg5 {[%clk 0:02:55.4]} 8. e3 {[%clk
0:02:01.5]} 8... Bg7 {[%clk 0:02:45.9]} 9. Qc2 {[%clk 0:01:57.4]} 9... d6 {[%clk
0:02:30.9]} 10. Nc3 {[%clk 0:01:51.7]} 10... Bf5 {[%clk 0:02:19.1]} 11. Qd2
{[%clk 0:01:46.8]} 11... Qg6 {[%clk 0:01:59.3]} 12. Nd5 {[%clk 0:01:32.9]} 12...
O-O-O {[%clk 0:01:52.5]} 13. Rd1 {[%clk 0:01:14.3]} 13... Kb8 {[%clk 0:01:46.9]}
14. Nf3 {[%clk 0:01:06.8]} 14... Nxf3+ {[%clk 0:01:40.9]} 15. gxf3 {[%clk
0:01:06.8]} 15... Ne5 {[%clk 0:01:40.8]} 16. Be2 {[%clk 0:01:02]} 16... Rhe8
{[%clk 0:01:32.4]} 17. Bh4 {[%clk 0:00:46]} 17... f6 {[%clk 0:01:24.8]} 18. Nf4
{[%clk 0:00:41.7]} 18... Qf7 {[%clk 0:01:24.4]} 19. Rg1 {[%clk 0:00:40.2]} 19...
Ng6 {[%clk 0:01:04.6]} 20. Bg3 {[%clk 0:00:36.9]} 20... Bh6 {[%clk 0:00:56.4]}
21. Nd5 {[%clk 0:00:32.2]} 21... Ne5 {[%clk 0:00:50.4]} 22. f4 {[%clk
0:00:31.6]} 22... Ng6 {[%clk 0:00:34.4]} 23. Rh1 {[%clk 0:00:28.9]} 23... Bf8
{[%clk 0:00:33.6]} 24. Qc3 {[%clk 0:00:24.1]} 24... Be4 {[%clk 0:00:28.7]} 25.
Rh2 {[%clk 0:00:23.1]} 25... Bxd5 {[%clk 0:00:25.1]} 26. cxd5 {[%clk 0:00:23]}
26... Ne7 {[%clk 0:00:17]} 27. Bf3 {[%clk 0:00:21.6]} 27... Nf5 {[%clk
0:00:16.7]} 28. Bh5 {[%clk 0:00:17.9]} 28... Qe7 {[%clk 0:00:12.1]} 29. Bxe8
{[%clk 0:00:17.5]} 29... Rxe8 {[%clk 0:00:13]} 30. Rd3 {[%clk 0:00:15.6]} 30...
Nxg3 {[%clk 0:00:12.9]} 31. fxg3 {[%clk 0:00:15.8]} 31... f5 {[%clk 0:00:11.5]}
32. Ke2 {[%clk 0:00:14]} 32... Bg7 {[%clk 0:00:11.5]} 33. Qc4 {[%clk 0:00:13.8]}
33... Bf6 {[%clk 0:00:06.8]} 34. Rb3 {[%clk 0:00:12.3]} 34... b6 {[%clk
0:00:05.4]} 35. Qc6 {[%clk 0:00:10.5]} 35... Rg8 {[%clk 0:00:04.9]} 36. Rg2
{[%clk 0:00:05.8]} 36... h5 {[%clk 0:00:04.7]} 37. Kf2 {[%clk 0:00:05]} 37... h4
{[%clk 0:00:04.8]} 38. gxh4 {[%clk 0:00:05]} 38... Bxh4+ {[%clk 0:00:05.7]} 39.
Kf1 {[%clk 0:00:05.1]} 39... Rxg2 {[%clk 0:00:05.7]} 40. Kxg2 {[%clk 0:00:05.2]}
40... Qg7+ {[%clk 0:00:05.9]} 41. Kf1 {[%clk 0:00:04.6]} 41... Qg8 {[%clk
0:00:03.1]} 42. Ke2 {[%clk 0:00:03.7]} 42... Qg2+ {[%clk 0:00:02.6]} 43. Kd3
{[%clk 0:00:03.7]} 43... Qe4+ {[%clk 0:00:02.5]} 44. Kd2 {[%clk 0:00:03.9]} 1-0

[Event "*** SCC Grand Prix: Titled Tuesday Blitz"]
[Site "Chess.com"]
[Date "2020.09.08"]
[Round "10"]
[White "boasovietica"]
[Black "Mambastik-Fantastic"]
[Result "1-0"]
[WhiteElo "2464"]
[BlackElo "2296"]
[TimeControl "180+1"]
[EndTime "11:57:03 PDT"]
[Termination "boasovietica won by resignation"]

1. d4 {[%clk 0:02:58.1]} 1... Nf6 {[%clk 0:02:59.2]} 2. Nf3 {[%clk 0:02:54]}
2... c5 {[%clk 0:02:58.9]} 3. e3 {[%clk 0:02:50.8]} 3... d5 {[%clk 0:02:56.4]}
4. b3 {[%clk 0:02:48.6]} 4... Nc6 {[%clk 0:02:56]} 5. Bb2 {[%clk 0:02:48.4]}
5... e6 {[%clk 0:02:55.6]} 6. Nbd2 {[%clk 0:02:45.7]} 6... Bd6 {[%clk
0:02:48.3]} 7. a3 {[%clk 0:02:38.9]} 7... O-O {[%clk 0:02:48.3]} 8. Ne5 {[%clk
0:02:33.3]} 8... Qc7 {[%clk 0:02:38.6]} 9. f4 {[%clk 0:02:19.6]} 9... Nd7 {[%clk
0:02:29.6]} 10. Bd3 {[%clk 0:02:15.3]} 10... f6 {[%clk 0:02:29.1]} 11. Qh5
{[%clk 0:01:53.5]} 11... f5 {[%clk 0:02:18.7]} 12. Nxd7 {[%clk 0:01:49.2]} 12...
Bxd7 {[%clk 0:02:15.4]} 13. g4 {[%clk 0:01:47.9]} 13... Be8 {[%clk 0:02:10]} 14.
Qh3 {[%clk 0:01:47.3]} 14... cxd4 {[%clk 0:01:56]} 15. gxf5 {[%clk 0:01:38.5]}
15... dxe3 {[%clk 0:01:54]} 16. Nf3 {[%clk 0:01:30.1]} 16... exf5 {[%clk
0:01:37.2]} 17. Rg1 {[%clk 0:01:27]} 17... Bg6 {[%clk 0:01:34.1]} 18. Rxg6
{[%clk 0:01:17.8]} 18... hxg6 {[%clk 0:01:32.8]} 19. Ng5 {[%clk 0:01:16.8]}
19... Rfe8 {[%clk 0:01:19]} 20. Qh7+ {[%clk 0:00:58]} 20... Kf8 {[%clk
0:01:18.3]} 21. Qxg6 {[%clk 0:00:42]} 21... Bxf4 {[%clk 0:00:31.5]} 22. Ne6+
{[%clk 0:00:17.6]} 22... Rxe6 {[%clk 0:00:30.7]} 23. Qxe6 {[%clk 0:00:18.5]}
23... Bxh2 {[%clk 0:00:29]} 24. Ke2 {[%clk 0:00:16]} 24... Qg3 {[%clk
0:00:24.8]} 25. Qxf5+ {[%clk 0:00:14.9]} 25... Ke7 {[%clk 0:00:18.7]} 26. Qf3
{[%clk 0:00:04.8]} 26... Qxf3+ {[%clk 0:00:15.6]} 27. Kxf3 {[%clk 0:00:05.2]}
27... d4 {[%clk 0:00:15.9]} 28. Rh1 {[%clk 0:00:03.1]} 28... Be5 {[%clk
0:00:14.6]} 29. Ke4 {[%clk 0:00:03]} 29... Bf6 {[%clk 0:00:14.4]} 30. b4 {[%clk
0:00:02.8]} 30... a6 {[%clk 0:00:14.2]} 31. Bc4 {[%clk 0:00:02]} 31... b5 {[%clk
0:00:12.7]} 32. Bd5 {[%clk 0:00:02.4]} 32... Rc8 {[%clk 0:00:13.3]} 33. Rh2
{[%clk 0:00:02.7]} 33... Nd8 {[%clk 0:00:11.2]} 34. Bxd4 {[%clk 0:00:02.4]}
34... Bxd4 {[%clk 0:00:10.6]} 35. Kxd4 {[%clk 0:00:02.9]} 35... Ne6+ {[%clk
0:00:08.5]} 36. Kxe3 {[%clk 0:00:02.8]} 36... Rc3+ {[%clk 0:00:07.2]} 37. Kd2
{[%clk 0:00:02.5]} 37... Rxa3 {[%clk 0:00:04.2]} 38. Re2 {[%clk 0:00:03]} 38...
Kd6 {[%clk 0:00:03.4]} 39. Bxe6 {[%clk 0:00:03.1]} 39... Ra4 {[%clk 0:00:03.1]}
40. c3 {[%clk 0:00:02.9]} 40... Ra2+ {[%clk 0:00:03]} 41. Bxa2 {[%clk 0:00:03]}
1-0

[Event "*** SCC Grand Prix: Titled Tuesday Blitz"]
[Site "Chess.com"]
[Date "2020.09.08"]
[Round "10"]
[White "korbul"]
[Black "13MiRacLe"]
[Result "1-0"]
[WhiteElo "2472"]
[BlackElo "2580"]
[TimeControl "180+1"]
[EndTime "11:57:04 PDT"]
[Termination "korbul won by resignation"]

1. e4 {[%clk 0:03:00.9]} 1... e5 {[%clk 0:02:56.9]} 2. Nf3 {[%clk 0:03:00.7]}
2... Nc6 {[%clk 0:02:57.4]} 3. Bb5 {[%clk 0:03:01.1]} 3... a6 {[%clk 0:02:57]}
4. Ba4 {[%clk 0:03:00.6]} 4... Nf6 {[%clk 0:02:53.8]} 5. O-O {[%clk 0:03:00.4]}
5... b5 {[%clk 0:02:53.5]} 6. Bb3 {[%clk 0:02:59.8]} 6... Bc5 {[%clk 0:02:54]}
7. Re1 {[%clk 0:02:55.3]} 7... d6 {[%clk 0:02:53.5]} 8. c3 {[%clk 0:02:55.1]}
8... Bb6 {[%clk 0:02:52.5]} 9. h3 {[%clk 0:02:54.1]} 9... h6 {[%clk 0:02:48.9]}
10. d3 {[%clk 0:02:52.9]} 10... O-O {[%clk 0:02:47.6]} 11. Nbd2 {[%clk
0:02:53.1]} 11... Ne7 {[%clk 0:02:47.9]} 12. Nh4 {[%clk 0:02:48.1]} 12... Kh8
{[%clk 0:02:13.9]} 13. Qf3 {[%clk 0:02:43.7]} 13... Ng6 {[%clk 0:02:09.9]} 14.
Nf5 {[%clk 0:02:43.3]} 14... Bxf5 {[%clk 0:01:30]} 15. exf5 {[%clk 0:02:42.7]}
15... Nh4 {[%clk 0:01:29.5]} 16. Qe2 {[%clk 0:02:39.4]} 16... Nxf5 {[%clk
0:01:28]} 17. Ne4 {[%clk 0:02:39.1]} 17... Nxe4 {[%clk 0:01:17.4]} 18. dxe4
{[%clk 0:02:38.9]} 18... Ne7 {[%clk 0:01:16.2]} 19. Kh1 {[%clk 0:02:35.7]} 19...
Ng6 {[%clk 0:01:15.4]} 20. g3 {[%clk 0:02:34.5]} 20... Qd7 {[%clk 0:01:10.8]}
21. g4 {[%clk 0:02:25]} 21... Rae8 {[%clk 0:00:48.7]} 22. a4 {[%clk 0:02:18.4]}
22... Nf4 {[%clk 0:00:44.6]} 23. Bxf4 {[%clk 0:02:16.5]} 23... exf4 {[%clk
0:00:45.5]} 24. Qf3 {[%clk 0:02:07.2]} 24... Qe7 {[%clk 0:00:32.5]} 25. Kg2
{[%clk 0:02:03.4]} 25... Qg5 {[%clk 0:00:31.6]} 26. Bd5 {[%clk 0:01:56]} 26...
bxa4 {[%clk 0:00:29.1]} 27. Rh1 {[%clk 0:01:52.1]} 27... Qe5 {[%clk 0:00:21]}
28. Rxa4 {[%clk 0:01:49.2]} 28... a5 {[%clk 0:00:21]} 29. h4 {[%clk 0:01:44.1]}
29... f6 {[%clk 0:00:21.3]} 30. Raa1 {[%clk 0:01:38.8]} 30... Rb8 {[%clk
0:00:20.9]} 31. Qd3 {[%clk 0:01:25.6]} 31... c6 {[%clk 0:00:21]} 32. Bc4 {[%clk
0:01:20.9]} 32... Qc5 {[%clk 0:00:19]} 33. Rhf1 {[%clk 0:01:17.5]} 33... d5
{[%clk 0:00:18.7]} 34. exd5 {[%clk 0:01:16.6]} 34... Rbd8 {[%clk 0:00:18.5]} 35.
Bb3 {[%clk 0:01:10.9]} 35... cxd5 {[%clk 0:00:18.5]} 36. Bc2 {[%clk 0:01:10.8]}
36... f5 {[%clk 0:00:17.3]} 37. gxf5 {[%clk 0:01:11.2]} 37... Rf6 {[%clk
0:00:16.8]} 38. Rae1 {[%clk 0:01:08.2]} 38... d4 {[%clk 0:00:16.6]} 39. c4
{[%clk 0:01:05.7]} 39... Qc6+ {[%clk 0:00:14.3]} 40. Re4 {[%clk 0:00:57.2]}
40... Bc5 {[%clk 0:00:12]} 41. Re1 {[%clk 0:00:55.9]} 41... Rdf8 {[%clk
0:00:08.8]} 42. Re2 {[%clk 0:00:54.5]} 42... Rxf5 {[%clk 0:00:07.6]} 43. Qf3
{[%clk 0:00:49.8]} 43... Qg6+ {[%clk 0:00:08.1]} 44. Kf1 {[%clk 0:00:49.4]}
44... Qf6 {[%clk 0:00:07.2]} 45. Re8 {[%clk 0:00:48.4]} 45... d3 {[%clk
0:00:05.6]} 46. Qxd3 {[%clk 0:00:44.7]} 46... f3 {[%clk 0:00:01.9]} 47. Rxf8+
{[%clk 0:00:44]} 47... Qxf8 {[%clk 0:00:02.4]} 48. Re5 {[%clk 0:00:41.3]} 48...
g6 {[%clk 0:00:01.9]} 49. Qc3 {[%clk 0:00:26.6]} 49... Bd6 {[%clk 0:00:02.3]}
50. Re8+ {[%clk 0:00:24.1]} 50... Be5 {[%clk 0:00:01.4]} 51. Rxf8+ {[%clk
0:00:23.7]} 1-0

[Event "*** SCC Grand Prix: Titled Tuesday Blitz"]
[Site "Chess.com"]
[Date "2020.09.08"]
[Round "10"]
[White "snap_man"]
[Black "annacramling"]
[Result "1-0"]
[WhiteElo "2287"]
[BlackElo "2141"]
[TimeControl "180+1"]
[EndTime "11:57:04 PDT"]
[Termination "snap_man won on time"]

1. e4 {[%clk 0:03:00.9]} 1... c5 {[%clk 0:02:54.7]} 2. Nf3 {[%clk 0:03:00.7]}
2... e6 {[%clk 0:02:53.9]} 3. g3 {[%clk 0:02:58.2]} 3... Nc6 {[%clk 0:02:53.1]}
4. Bg2 {[%clk 0:02:58.3]} 4... g6 {[%clk 0:02:53.5]} 5. O-O {[%clk 0:02:57.7]}
5... Bg7 {[%clk 0:02:53]} 6. c3 {[%clk 0:02:58]} 6... Nge7 {[%clk 0:02:49.8]} 7.
d4 {[%clk 0:02:57.8]} 7... cxd4 {[%clk 0:02:49.8]} 8. cxd4 {[%clk 0:02:53]} 8...
d6 {[%clk 0:02:49.6]} 9. d5 {[%clk 0:02:48.7]} 9... exd5 {[%clk 0:02:47.3]} 10.
exd5 {[%clk 0:02:48]} 10... Ne5 {[%clk 0:02:43.8]} 11. Nxe5 {[%clk 0:02:10.2]}
11... Bxe5 {[%clk 0:02:41.6]} 12. Nc3 {[%clk 0:02:10]} 12... O-O {[%clk
0:02:39.8]} 13. Bg5 {[%clk 0:02:08.2]} 13... Bg7 {[%clk 0:02:32.6]} 14. Re1
{[%clk 0:02:07.7]} 14... Re8 {[%clk 0:02:28.8]} 15. Qe2 {[%clk 0:02:06.2]} 15...
f6 {[%clk 0:02:22.1]} 16. Bf4 {[%clk 0:02:03.8]} 16... Bf5 {[%clk 0:02:14.3]}
17. Qd2 {[%clk 0:02:00]} 17... g5 {[%clk 0:02:10.9]} 18. Be3 {[%clk 0:01:59.6]}
18... Ng6 {[%clk 0:02:06.1]} 19. Ne2 {[%clk 0:01:37.3]} 19... Ne5 {[%clk
0:01:50.6]} 20. Nd4 {[%clk 0:01:30.4]} 20... Bd7 {[%clk 0:01:25.6]} 21. Rac1
{[%clk 0:01:26.8]} 21... h6 {[%clk 0:01:02.6]} 22. h3 {[%clk 0:01:25.3]} 22...
f5 {[%clk 0:01:00.3]} 23. Ne6 {[%clk 0:01:12.4]} 23... Bxe6 {[%clk 0:00:34.8]}
24. dxe6 {[%clk 0:01:12.1]} 24... Qe7 {[%clk 0:00:27.8]} 25. f4 {[%clk
0:01:02.6]} 25... gxf4 {[%clk 0:00:21.5]} 26. Bxf4 {[%clk 0:01:02.6]} 26... Rac8
{[%clk 0:00:18.3]} 27. Rxc8 {[%clk 0:00:52.6]} 27... Rxc8 {[%clk 0:00:17.9]} 28.
Bxh6 {[%clk 0:00:52.8]} 28... Nc4 {[%clk 0:00:12.9]} 29. Qf4 {[%clk 0:00:52.3]}
29... Bxh6 {[%clk 0:00:04.3]} 30. Qxh6 {[%clk 0:00:51.2]} 30... Ne5 {[%clk
0:00:04.1]} 31. Rf1 {[%clk 0:00:35.1]} 31... Qg7 {[%clk 0:00:02.3]} 32. Qxg7+
{[%clk 0:00:30.5]} 32... Kxg7 {[%clk 0:00:03.2]} 33. Rxf5 {[%clk 0:00:23.3]}
33... Re8 {[%clk 0:00:03.8]} 34. Bd5 {[%clk 0:00:21.5]} 34... Kg6 {[%clk
0:00:03.5]} 35. g4 {[%clk 0:00:20.5]} 35... b6 {[%clk 0:00:03.6]} 36. Kg2 {[%clk
0:00:20.3]} 36... Nd3 {[%clk 0:00:02.8]} 37. b3 {[%clk 0:00:18.1]} 37... Nc5
{[%clk 0:00:02.8]} 38. h4 {[%clk 0:00:15.4]} 38... Nxe6 {[%clk 0:00:02.7]} 39.
h5+ {[%clk 0:00:15.1]} 39... Kg7 {[%clk 0:00:02.7]} 40. Kg3 {[%clk 0:00:14.5]}
40... Nd4 {[%clk 0:00:01.7]} 41. Rf7+ {[%clk 0:00:14.2]} 1-0